bitfinex-derivatives/quotes_ETHF0:USTF0_20250612
["timestamp","ask_amount","ask_price","bid_price","bid_amount"]
[1749702009486,2.61870177,2754.6,2754.5,0.00544109]
[1749702009783,3.34461177,2754.6,2754.5,0.00544109]
[1749702011088,3.34461177,2754.6,2753.8,1.2001]
[1749702011089,1.81487,2754.5,2753.2,3.2078]
[1749702011292,0.72617,2753.6,2753.5,4.431]
[1749702011785,3.2078,2753.7,2753.6,0.72618]
[1749702011987,3.2078,2754.0,2753.5,21.504]
[1749702012183,3.2078,2754.0,2753.5,21.50944109]
[1749702012184,3.21324109,2754.0,2753.5,21.50944109]
[1749702012397,3.2078,2753.7,2753.5,21.50944109]
[1749702012690,0.72618,2753.6,2753.5,4.43644109]
[1749702012892,3.21324109,2754.0,2753.6,0.72617]
[1749702013089,1.1742,2753.9,2753.5,21.51544109]
[1749702013288,0.00544109,2754.0,2753.9,0.7261]
[1749702013482,0.00544109,2754.0,2753.6,3.7174]
[1749702013684,0.7261,2753.9,2753.8,0.72611]
[1749702013890,0.7261,2753.9,2753.8,21.527]
[1749702014091,3.93932109,2754.0,2753.8,22.25312]
[1749702014288,0.7261,2753.9,2753.8,21.527]
[1749702014592,0.7261,2753.9,2753.8,22.25312]
[1749702014785,3.21324109,2754.0,2753.9,0.7261]
[1749702014985,3.93931109,2754.0,2753.8,62.327]
[1749702015192,3.93931109,2754.0,2753.8,22.2531]
[1749702015388,0.00544109,2754.0,2753.8,21.527]
[1749702015694,0.00544109,2754.0,2753.9,41.5261]
[1749702016093,0.73151109,2754.0,2753.9,40.8]
[1749702016299,0.7261,2753.9,2753.8,21.527]
[1749702016788,3.75784109,2754.0,2753.8,21.527]
[1749702017093,3.75784109,2754.0,2753.9,0.7261]
[1749702017290,0.55004109,2754.0,2753.9,22.2521]
[1749702017491,0.84044109,2754.0,2753.9,22.2521]
[1749702017687,1.56651109,2754.0,2753.9,22.2521]
[1749702017891,0.84044109,2754.0,2753.9,22.2521]
[1749702019094,1.56651109,2754.0,2753.9,21.526]
[1749702019600,0.84044109,2754.0,2753.9,22.2521]
[1749702020888,0.84044109,2754.0,2753.7,0.72614]
[1749702021090,0.18092478,2754.0,2753.9,0.7261]
[1749702021297,3.2078,2754.4,2754.0,0.72605]
[1749702021489,0.7261,2753.9,2753.8,21.81]
[1749702022001,0.6062,2754.0,2753.2,3.93406]
[1749702022296,0.72612,2753.9,2753.7,0.72614]
[1749702022496,0.7261,2753.9,2753.6,17.202]
[1749702022686,0.7261,2753.9,2753.7,0.72615]
[1749702022890,0.72612,2753.8,2753.6,17.92816]
[1749702023087,0.7261,2753.9,2753.7,0.72615]
[1749702023293,3.2078,2754.0,2753.9,0.7261]
[1749702023488,3.2078,2754.0,2753.8,22.56511]
[1749702023793,3.2078,2754.0,2753.9,0.7261]
[1749702024692,0.00544109,2754.1,2754.0,0.72607]
[1749702025196,0.00544109,2754.1,2754.0,7.01067]
[1749702026701,0.00544109,2754.1,2754.0,47.81067]
[1749702027194,1.8674,2755.1,2754.0,47.0846]
[1749702027395,1.42162181,2755.0,2754.9,0.72581]
[1749702027600,1.42162181,2755.0,2754.9,22.57581]
[1749702028001,0.72581,2755.0,2754.9,21.85]
[1749702029299,0.7259,2754.7,2754.5,0.6342]
[1749702029495,0.72587,2754.8,2754.6,22.5729]
[1749702029690,0.72589,2754.7,2754.6,21.847]
[1749702029895,1.1942,2754.8,2754.1,26.3939]
[1749702030089,0.72599,2754.3,2754.2,21.833]
[1749702030297,3.2078,2754.5,2754.1,21.959]
[1749702030493,0.72604,2754.1,2754.0,4.629]
[1749702030702,0.72604,2754.1,2754.0,21.85]
[1749702030901,1.92024,2754.1,2754.0,21.851]
[1749702031292,1.92024,2754.1,2754.0,4.629]
[1749702031497,1.92024,2754.1,2754.0,21.851]
[1749702031699,1.92024,2754.1,2754.0,22.57707]
[1749702031901,1.92024,2754.1,2754.0,21.851]
[1749702032097,1.1942,2754.1,2754.0,22.57707]
[1749702032294,1.92024,2754.1,2754.0,21.851]
[1749702032602,1.92024,2754.1,2754.0,4.629]
[1749702032802,1.92024,2754.1,2754.0,21.85]
[1749702033302,0.72604,2754.1,2754.0,22.57606]
[1749702033505,3.2078,2754.2,2754.0,21.85]
[1749702033699,3.93383,2754.2,2754.1,0.72604]
[1749702034199,3.2078,2754.5,2754.0,21.85]
[1749702034409,0.72598,2754.4,2754.3,0.72599]
[1749702034604,0.72598,2754.4,2754.0,21.85]
[1749702034903,0.72599,2754.3,2754.0,21.85]
[1749702035201,4.4414,2754.5,2754.1,0.72603]
[1749702035202,0.72604,2754.2,2754.1,0.72603]
[1749702035395,0.72604,2754.2,2754.0,21.85]
[1749702035593,0.72602,2754.2,2754.1,21.851]
[1749702035800,3.2078,2754.2,2754.1,21.846]
[1749702035996,3.93382,2754.2,2754.1,21.846]
[1749702036401,3.93382,2754.2,2754.1,4.629]
[1749702036602,3.93382,2754.2,2754.1,22.57204]
[1749702036905,3.2078,2754.2,2754.1,22.57204]
[1749702037405,0.726,2754.3,2754.2,0.72602]
[1749702037601,0.72602,2754.2,2754.1,21.846]
[1749702037801,3.93382,2754.2,2754.1,21.846]
[1749702038300,3.93382,2754.2,2754.1,21.839]
[1749702038496,3.93382,2754.2,2753.7,42.6441]
[1749702038497,0.72612,2753.8,2753.7,40.8]
[1749702038806,3.2078,2753.9,2753.7,17.93713]
[1749702039001,3.2078,2753.9,2753.7,17.211]
[1749702039203,0.72607,2754.0,2753.9,0.72608]
[1749702039608,1.99506,2754.1,2754.0,0.72607]
[1749702039904,0.72607,2754.0,2753.9,4.629]
[1749702040602,1.269,2754.1,2753.9,4.629]
[1749702040603,1.99506,2754.1,2754.0,0.72607]
[1749702040808,3.8097,2754.3,2753.9,4.629]
[1749702041001,0.72605,2754.1,2754.0,0.72605]
[1749702041198,0.72606,2754.1,2754.0,0.72607]
[1749702041701,3.8097,2754.3,2754.2,0.72602]
[1749702041899,4.53569,2754.3,2754.2,17.93602]
[1749702042401,4.53569,2754.3,2754.2,17.21]
[1749702043005,1.32789,2754.3,2754.2,17.21]
[1749702043210,2.75216789,2754.3,2754.2,17.21]
[1749702043398,4.4651,2754.6,2754.2,17.21]
[1749702043399,3.2078,2754.6,2754.2,17.21]
[1749702043605,0.5953,2754.7,2754.3,4.629]
[1749702043904,0.72595,2754.5,2754.3,4.629]
[1749702044109,0.5953,2754.7,2754.4,22.58996]
[1749702044406,0.72592,2754.6,2754.4,21.864]
[1749702044606,1.3212,2754.7,2754.5,0.72592]
[1749702044802,1.3212,2754.7,2754.4,21.864]
[1749702044803,0.72591,2754.6,2754.4,22.58995]
[1749702045103,0.72594,2754.5,2754.4,21.864]
[1749702045409,0.72593,2754.6,2754.5,0.72593]
[1749702046007,0.72593,2754.6,2754.4,21.864]
[1749702046008,0.72594,2754.5,2754.4,21.864]
[1749702047500,0.72594,2754.5,2754.4,22.58996]
[1749702047707,0.72594,2754.5,2754.4,21.864]
[1749702048105,3.93373,2754.6,2754.4,22.58996]
[1749702048312,3.2078,2754.6,2754.4,21.864]
[1749702048513,0.72597,2754.4,2754.3,0.72597]
[1749702048706,1.89815,2754.5,2754.4,0.72596]
[1749702048907,1.89816,2754.5,2754.3,22.56698]
[1749702049413,0.72596,2754.4,2754.3,22.56699]
[1749702049612,0.72596,2754.4,2754.3,21.841]
[1749702050007,1.1722,2754.5,2754.1,3.2078]
[1749702050214,1.42592452,2754.4,2754.2,22.55299]
[1749702050504,0.5953,2754.7,2754.2,21.827]
[1749702050706,1.42601124,2754.6,2754.5,0.72592]
[1749702050911,2.15192124,2754.6,2754.5,5.35492]
[1749702051105,2.15205596,2754.6,2754.5,5.35492]
[1749702051306,0.72591,2754.6,2754.5,5.35494]
[1749702051502,0.72591,2754.6,2754.5,4.629]
[1749702052705,2.15186652,2754.6,2754.5,4.629]
[1749702053105,1.42595652,2754.6,2754.5,5.35494]
[1749702053308,3.2078,2754.8,2754.6,0.72589]
[1749702053506,3.93366,2754.8,2754.7,17.192]
[1749702053812,5.35946557,2754.8,2754.7,17.192]
[1749702054012,5.35946557,2754.8,2754.7,57.992]
[1749702054407,2.15166557,2754.8,2754.7,57.992]
[1749702057308,2.15166557,2754.8,2754.7,58.71788]
[1749702057714,1.42580557,2754.8,2754.7,58.71788]
[1749702057915,3.93364,2754.9,2754.7,58.71788]
[1749702058217,3.2078,2754.9,2754.8,0.72586]
[1749702058416,3.2078,2754.9,2754.7,57.992]
[1749702058620,3.93363,2754.9,2754.7,57.992]
[1749702058806,0.72583,2754.9,2754.7,58.71787]
[1749702059010,0.72586,2754.9,2754.7,58.71787]
[1749702059207,3.2078,2755.0,2754.7,58.71787]
[1749702059406,0.72586,2754.8,2754.7,57.992]
[1749702060316,0.72585,2754.9,2754.7,58.71788]
[1749702060620,4.4729,2755.0,2754.7,58.71788]
[1749702060921,0.72586,2754.8,2754.7,40.8]
[1749702061216,0.72586,2754.8,2754.7,57.946]
[1749702061618,0.72594,2754.5,2754.4,0.6486]
[1749702061818,6.28746,2755.0,2754.4,23.14955]
[1749702062019,0.72594,2754.5,2754.4,23.14955]
[1749702062223,0.72594,2754.5,2754.4,21.77]
[1749702062520,0.72598,2754.4,2754.2,0.72601]
[1749702062816,0.72596,2754.4,2754.3,21.77]
[1749702063216,0.72595,2754.5,2754.4,0.72596]
[1749702063718,3.25071,2754.6,2754.3,21.77]
[1749702063914,0.7258,2755.1,2754.3,21.77]
[1749702064222,1.41952618,2755.0,2754.9,0.72581]
[1749702064425,0.00544109,2755.2,2755.1,0.72577]
[1749702065017,0.72578,2755.1,2755.0,0.72579]
[1749702065321,0.00544109,2755.2,2755.1,0.72578]
[1749702066312,0.00544109,2755.2,2755.1,5.72578]
[1749702066615,0.00544109,2755.2,2755.1,23.09258]
[1749702066822,0.00544109,2755.2,2755.1,63.89258]
[1749702069224,0.00544109,2755.2,2755.1,63.90758]
[1749702069816,0.00544109,2755.2,2755.1,68.90758]
[1749702070219,0.5443,2755.8,2755.7,0.72562]
[1749702070420,0.2902,2755.9,2755.7,21.794]
[1749702070728,0.72559,2755.8,2755.7,21.794]
[1749702071026,1.5468,2755.9,2755.4,0.72569]
[1749702071225,0.72567,2755.6,2755.5,21.791]
[1749702071422,4.4644,2755.7,2755.6,0.72565]
[1749702071618,5.19002,2755.7,2755.6,0.72565]
[1749702071828,0.00544109,2755.9,2755.5,21.791]
[1749702072127,3.93342,2755.7,2755.6,21.785]
[1749702072318,1.21354109,2755.9,2755.6,21.785]
[1749702072519,0.72562,2755.7,2755.6,21.785]
[1749702073820,0.72562,2755.7,2755.3,3.2078]
[1749702073821,0.72565,2755.6,2755.3,3.2078]
[1749702074025,0.72564,2755.7,2755.5,0.72566]
[1749702074527,0.6307,2755.6,2755.5,0.72566]
[1749702076129,3.93341,2755.8,2755.7,0.72562]
[1749702076130,3.2078,2755.8,2755.7,0.72562]
[1749702076428,0.00544109,2755.9,2755.8,0.72559]
[1749702076624,0.00544109,2755.9,2755.8,5.35359]
[1749702077028,0.73101109,2755.9,2755.8,4.628]
[1749702077224,0.00544109,2755.9,2755.8,4.628]
[1749702077427,0.73101109,2755.9,2755.8,4.628]
[1749702077732,1.96441109,2755.9,2755.8,21.75]
[1749702080429,1.23884109,2755.9,2755.8,21.736]
[1749702080625,1.96441109,2755.9,2755.8,21.736]
[1749702082326,1.96441109,2755.9,2755.4,21.95]
[1749702082327,0.72567,2755.5,2755.4,21.95]
[1749702082534,3.93347,2755.5,2755.4,22.6757]
[1749702082829,3.93347,2755.5,2755.4,44.4057]
[1749702083026,3.93347,2755.5,2755.4,26.578]
[1749702083235,3.93347,2755.5,2755.4,4.628]
[1749702083425,3.93347,2755.5,2755.4,21.726]
[1749702083723,0.72581,2755.0,2754.9,0.00544109]
[1749702083930,2.5187,2755.4,2754.9,21.68044109]
[1749702084132,0.72581,2755.0,2754.9,22.40626109]
[1749702084331,0.72581,2755.0,2754.9,5.30826109]
[1749702084531,0.72581,2755.0,2754.9,4.58244109]
[1749702084725,0.72581,2755.0,2754.9,21.67944109]
[1749702084921,0.72581,2755.0,2754.9,4.58244109]
[1749702085127,0.72581,2755.0,2754.9,21.67744109]
[1749702085626,0.72581,2755.0,2754.9,22.40327109]
[1749702085823,1.9675,2755.1,2754.9,22.40327109]
[1749702086134,0.72581,2755.0,2754.9,4.58244109]
[1749702086336,1.96751,2755.0,2754.9,21.67744109]
[1749702087226,1.96751,2755.0,2754.9,0.00544109]
[1749702087428,0.72601,2754.3,2754.1,3.2078]
[1749702087734,9.47231429,2755.0,2754.3,0.72597]
[1749702087735,0.72595,2754.5,2754.3,0.72597]
[1749702087932,1.35746,2754.4,2754.3,40.8]
[1749702088140,2.53696,2754.4,2754.3,40.8]
[1749702088339,0.72599,2754.3,2754.2,4.577]
[1749702088545,0.72602,2754.2,2754.1,3.21324109]
[1749702088740,0.72602,2754.2,2754.1,4.58244109]
[1749702089243,0.72602,2754.2,2754.1,17.08044109]
[1749702089746,1.95492,2754.2,2754.1,17.08044109]
[1749702093442,1.95492,2754.2,2754.1,17.07744109]
[1749702093836,1.95492,2754.2,2754.1,17.80348109]
[1749702094041,3.2078,2754.3,2754.1,17.07744109]
[1749702094243,0.72602,2754.2,2754.1,17.07744109]
[1749702094445,3.93379,2754.3,2754.1,17.07744109]
[1749702094645,1.176,2754.4,2754.3,0.72599]
[1749702096647,0.6315,2754.4,2754.3,0.72599]
[1749702097650,3.21324109,2754.6,2754.5,0.72594]
[1749702097844,3.21324109,2754.6,2754.5,17.78294]
[1749702098552,3.93915109,2754.6,2754.5,21.631]
[1749702098749,5.78655109,2754.6,2754.5,21.631]
[1749702098950,5.78655109,2754.6,2754.5,22.35694]
[1749702099253,5.78655109,2754.6,2754.5,21.631]
[1749702099554,5.78655109,2754.6,2754.5,21.63]
[1749702100247,5.06064109,2754.6,2754.5,22.35594]
[1749702100450,3.83534109,2754.6,2754.5,22.35594]
[1749702100647,4.56125109,2754.6,2754.5,4.579]
[1749702100847,7.27262374,2754.6,2754.5,21.624]
[1749702101148,7.2725951,2754.6,2754.5,21.624]
[1749702101349,0.72602,2754.2,2754.1,0.00544109]
[1749702101554,0.72602,2754.2,2754.1,21.63244109]
[1749702101747,3.93382,2754.2,2754.1,21.63244109]
[1749702102160,3.93382,2754.2,2754.1,21.63144109]
[1749702102851,5.18752,2754.2,2754.1,21.63144109]
[1749702103055,1.81522,2754.0,2753.4,0.72622]
[1749702103250,4.4615,2753.9,2753.5,17.7652]
[1749702103954,0.7262,2753.5,2753.4,4.579]
[1749702104155,0.7262,2753.5,2753.4,21.638]
[1749702104557,2.6162,2753.5,2753.4,21.638]
[1749702104753,0.6363,2753.5,2753.4,22.36423]
[1749702105055,0.6363,2753.5,2753.4,0.72623]
[1749702105255,0.6363,2753.5,2753.4,22.36023]
[1749702105960,1.3625,2753.5,2753.4,21.634]
[1749702106355,1.3625,2753.5,2753.4,22.36023]
[1749702106958,0.6363,2753.5,2753.4,22.36023]
[1749702107756,1.99394,2753.8,2753.6,0.72616]
[1749702107955,0.6052,2753.7,2753.4,4.579]
[1749702108158,0.6052,2753.7,2753.5,17.041]
[1749702108460,0.72619,2753.6,2753.5,17.041]
[1749702108654,0.6052,2753.7,2753.5,17.041]
[1749702109053,0.6052,2753.7,2753.6,0.72617]
[1749702109959,1.33135,2753.7,2753.6,0.72617]
[1749702110956,3.2078,2753.9,2753.5,17.041]
[1749702111352,0.72617,2753.6,2753.5,17.041]
[1749702112459,0.7262,2753.5,2753.4,4.579]
[1749702112660,1.3745,2753.5,2753.4,21.604]
[1749702112858,1.3745,2753.5,2753.4,22.33023]
[1749702113162,0.72623,2753.4,2753.3,40.8]
[1749702113454,0.72623,2753.4,2753.3,62.399]
[1749702114054,0.72625,2753.3,2753.2,22.68871109]
[1749702114258,0.72625,2753.3,2753.2,44.22371109]
[1749702115258,1.27094,2753.4,2753.3,0.72625]
[1749702115455,0.5447,2753.4,2753.3,0.72625]
[1749702115656,1.27093,2753.4,2753.3,0.72625]
[1749702115857,1.27094,2753.4,2753.3,0.72625]
[1749702116054,0.72625,2753.3,2753.2,0.73170109]
[1749702116260,0.72625,2753.3,2753.2,17.74470109]
[1749702116560,5.38681877,2753.3,2753.2,0.00544109]
[1749702116862,6.56771877,2753.3,2753.2,17.01344109]
[1749702117264,6.56771877,2753.3,2753.2,0.00544109]
[1749702117561,6.56771877,2753.3,2753.2,17.01644109]
[1749702117959,6.56771877,2753.3,2753.2,0.00544109]
[1749702118261,0.72636,2752.9,2752.8,4.523]
[1749702118462,5.38692877,2752.9,2752.8,4.523]
[1749702118662,0.72647,2752.5,2752.4,4.523]
[1749702118864,2.17923877,2752.5,2752.4,4.523]
[1749702119063,2.17923877,2752.5,2752.4,21.536]
[1749702119257,3.41804877,2752.5,2752.4,17.011]
[1749702119461,3.41803877,2752.5,2752.4,17.011]
[1749702120660,0.72652,2752.3,2752.2,0.00544109]
[1749702120872,5.38708877,2752.3,2752.2,17.03644109]
[1749702121659,4.66056877,2752.3,2752.2,17.76298109]
[1749702121860,0.61794109,2752.7,2752.6,0.72644]
[1749702122065,2.07106641,2752.7,2752.6,17.75944]
[1749702122762,1.45856641,2752.7,2752.6,17.75944]
[1749702123061,1.45856641,2752.7,2752.6,17.033]
[1749702123062,2.18497641,2752.7,2752.6,17.033]
[1749702123267,1.45856641,2752.7,2752.6,17.75944]
[1749702123470,1.45856641,2752.7,2752.6,0.72644]
[1749702123768,1.45856641,2752.7,2752.6,22.28544]
[1749702124169,2.18497641,2752.7,2752.6,21.559]
[1749702124470,1.45856641,2752.7,2752.6,22.28544]
[1749702125569,0.72644,2752.6,2752.5,0.72644]
[1749702125769,2.24565109,2752.7,2752.6,17.033]
[1749702125971,3.69875668,2752.7,2752.6,17.033]
[1749702126272,0.72652,2752.3,2752.2,0.00544109]
[1749702126473,2.17962559,2752.3,2752.2,17.76096109]
[1749702127066,2.17962559,2752.3,2752.2,17.03444109]
[1749702127266,2.17962559,2752.3,2752.2,0.00544109]
[1749702127267,4.06082559,2752.3,2752.2,0.00544109]
[1749702128163,2.06810559,2752.3,2752.2,0.00544109]
[1749702128362,1.45310559,2752.3,2752.2,0.73198109]
[1749702128567,1.45310559,2752.3,2752.2,17.76798109]
[1749702128968,2.17962559,2752.3,2752.2,17.04144109]
[1749702129371,1.45310559,2752.3,2752.2,17.76798109]
[1749702129672,1.45310559,2752.3,2752.2,17.04144109]
[1749702129862,2.17979495,2752.3,2752.2,17.04144109]
[1749702130066,2.17979495,2752.3,2752.2,0.00544109]
[1749702130267,7.17979495,2752.3,2752.2,0.00544109]
[1749702130475,2.17979495,2752.3,2752.2,0.00544109]
[1749702131565,1.8164,2752.2,2751.3,3.7988]
[1749702131877,3.2078,2751.8,2751.7,0.72668]
[1749702132069,4.66107495,2751.8,2751.7,0.72668]
[1749702132467,1.45327495,2751.8,2751.7,0.72668]
[1749702132975,1.45327495,2751.8,2751.7,17.79568]
[1749702135277,1.45327495,2751.8,2751.7,22.79568]
[1749702135477,3.2078,2752.2,2752.1,0.72657]
[1749702135678,3.2078,2752.2,2752.1,5.25157]
[1749702136671,3.93434,2752.2,2752.1,4.525]
[1749702136867,0.6308,2752.4,2752.1,21.577]
[1749702137074,1.35731,2752.4,2752.2,0.72653]
[1749702137272,1.35731,2752.4,2752.1,21.577]
[1749702137472,1.35731,2752.4,2752.2,0.72653]
[1749702137778,1.3573,2752.4,2752.3,0.72652]
[1749702138081,1.35729,2752.4,2752.3,0.72652]
[1749702138378,1.35729,2752.4,2752.3,21.569]
[1749702138573,2.60179,2752.4,2752.3,21.569]
[1749702138977,2.60179,2752.4,2752.3,22.29552]
[1749702139278,1.8753,2752.4,2752.3,22.29552]
[1749702139579,2.60179,2752.4,2752.3,22.29552]
[1749702139775,1.35729,2752.4,2752.3,4.525]
[1749702139979,2.60179,2752.4,2752.3,4.525]
[1749702143481,0.72652,2752.3,2752.2,0.72653]
[1749702143681,0.72652,2752.3,2751.8,4.525]
[1749702143682,0.72662,2751.9,2751.8,4.525]
[1749702143878,3.2078,2752.0,2751.9,0.72662]
[1749702144080,3.2078,2752.3,2751.8,21.538]
[1749702144284,3.2078,2752.3,2752.2,0.72654]
[1749702144582,3.2078,2752.3,2752.2,5.24554]
[1749702145881,3.2078,2752.6,2752.5,0.72647]
[1749702146080,3.2078,2752.6,2752.5,17.74047]
[1749702146673,1.66526109,2752.7,2752.6,0.72644]
[1749702146986,0.29604109,2752.7,2752.6,5.24544]
[1749702147185,0.29604109,2752.7,2752.6,11.54614]
[1749702147384,0.29604109,2752.7,2752.6,14.76374]
[1749702148180,0.29604109,2752.7,2752.6,55.56374]
[1749702148384,0.29604109,2752.7,2752.6,51.04474]
[1749702148685,0.29604109,2752.7,2752.6,64.37314]
[1749702149184,0.29604109,2752.7,2752.6,63.07244]
[1749702150188,0.29604109,2752.7,2752.6,63.07144]
[1749702150787,1.02245109,2752.7,2752.6,41.52644]
[1749702150989,0.94564109,2752.7,2752.6,63.06144]
[1749702152089,0.94564109,2752.7,2752.6,63.05544]
[1749702152386,1.67205109,2752.7,2752.6,63.05444]
[1749702152590,2.20754109,2752.7,2752.6,63.05444]
[1749702153287,2.20754109,2752.7,2752.6,22.25444]
[1749702153584,0.29604109,2752.7,2752.6,22.25444]
[1749702153789,0.29604109,2752.7,2752.6,66.26224]
[1749702155386,0.29604109,2752.7,2752.6,44.73424]
[1749702155593,1.02245109,2752.7,2752.6,62.314]
[1749702156285,0.29604109,2752.7,2752.6,63.04044]
[1749702156489,1.02245109,2752.7,2752.6,4.518]
[1749702156786,2.26885109,2752.7,2752.6,21.512]
[1749702156991,2.26885109,2752.7,2752.6,22.23844]
[1749702157289,0.72644,2752.6,2752.5,0.72645]
[1749702157496,0.72644,2752.6,2752.5,21.507]
[1749702157687,1.36064,2752.6,2752.5,22.23347]
[1749702158491,1.36064,2752.6,2752.5,21.507]
[1749702158694,0.6342,2752.6,2752.5,22.23347]
[1749702158997,1.36064,2752.6,2752.5,22.23347]
[1749702159194,1.36064,2752.6,2752.5,21.507]
[1749702159495,0.72649,2752.5,2752.3,21.976]
[1749702159688,0.72649,2752.5,2752.4,21.503]
[1749702159890,2.64419,2752.5,2752.4,4.518]
[1749702160091,2.64419,2752.5,2752.4,21.503]
[1749702160293,2.93479,2752.5,2752.4,4.518]
[1749702160489,2.93479,2752.5,2752.4,21.5]
[1749702161197,0.913,2752.5,2752.4,22.22649]
[1749702161493,1.63947,2752.5,2752.4,22.22649]
[1749702161693,0.913,2752.5,2752.4,22.22649]
[1749702162298,0.2906,2752.5,2752.4,22.22649]
[1749702162594,0.2906,2752.5,2752.4,21.492]
[1749702162997,2.47023617,2752.5,2752.4,21.501]
[1749702163191,4.37423617,2752.5,2752.4,21.501]
[1749702163397,0.72649,2752.4,2752.3,21.976]
[1749702163585,3.46865617,2752.4,2752.3,21.5]
[1749702163997,3.46865617,2752.4,2752.3,4.518]
[1749702164293,3.46865617,2752.4,2752.3,21.503]
[1749702165892,2.01549,2752.4,2752.3,21.503]
[1749702166096,3.46887186,2752.4,2752.3,4.518]
[1749702166296,3.46887186,2752.4,2752.3,21.495]
[1749702166891,3.46887186,2752.4,2752.3,4.518]
[1749702167102,3.46887186,2752.4,2752.3,21.491]
[1749702167292,1.45338186,2752.4,2752.3,22.21752]
[1749702167496,0.2906,2752.5,2752.4,0.72649]
[1749702167898,0.2906,2752.5,2752.4,2.01879]
[1749702168898,0.2906,2752.5,2752.4,0.72649]
[1749702169097,1.74369872,2752.5,2752.4,0.72649]
[1749702169600,0.2906,2752.5,2752.4,0.72649]
[1749702170900,1.01707,2752.5,2752.4,22.21949]
[1749702171095,0.2906,2752.5,2752.4,22.21949]
[1749702171293,2.47014969,2752.5,2752.4,22.21949]
[1749702171494,0.72649,2752.4,2752.3,0.7265]
[1749702171696,0.72649,2752.4,2752.3,22.2135]
[1749702172194,0.2906,2752.5,2752.4,0.72649]
[1749702172499,1.74375252,2752.5,2752.4,0.72649]
[1749702172896,0.2906,2752.5,2752.4,0.72649]
[1749702173403,1.01707,2752.5,2752.4,0.72649]
[1749702173595,0.72649,2752.4,2752.3,22.2135]
[1749702173796,2.18798,2752.5,2752.4,0.72649]
[1749702173997,2.18796,2752.5,2752.4,0.72649]
[1749702174598,0.2906,2752.5,2752.4,0.72649]
[1749702176705,3.4984,2752.5,2752.0,3.2078]
[1749702176905,0.72652,2752.3,2752.2,0.72653]
[1749702177203,0.72652,2752.3,2752.1,0.72655]
[1749702177402,3.4984,2752.5,2752.4,0.72649]
[1749702177598,4.95160267,2752.5,2752.3,0.7265]
[1749702177800,4.95160267,2752.5,2752.2,21.428]
[1749702177801,0.72652,2752.3,2752.2,0.72653]
[1749702178093,0.72652,2752.3,2752.2,22.15553]
[1749702178598,2.0018,2752.4,2752.3,0.72652]
[1749702178803,3.45502639,2752.4,2752.3,0.72652]
[1749702180202,0.72652,2752.3,2752.2,22.15553]
[1749702180403,1.01708,2752.5,2752.4,0.72649]
[1749702180607,2.47028669,2752.5,2752.4,0.72649]
[1749702180801,0.72649,2752.4,2752.3,0.7265]
[1749702180999,2.17971669,2752.4,2752.3,0.72651]
[1749702181400,0.72652,2752.3,2752.2,22.15553]
[1749702181601,0.72649,2752.4,2752.3,0.7265]
[1749702181800,0.5449,2752.6,2752.2,21.429]
[1749702182007,0.5449,2752.6,2752.5,0.72647]
[1749702182900,3.2078,2753.1,2752.6,0.72644]
[1749702183106,3.2078,2753.5,2753.4,0.72622]
[1749702183295,4.66055913,2753.5,2753.4,22.14322]
[1749702183500,4.66055913,2753.5,2753.4,62.94322]
[1749702183706,4.66055913,2753.5,2753.4,22.14322]
[1749702184102,3.2078,2753.5,2753.4,22.14322]
[1749702184409,3.2078,2753.5,2753.4,62.94322]
[1749702184602,3.4983,2753.5,2753.4,62.94322]
[1749702185698,0.2905,2753.5,2753.4,62.94322]
[1749702186310,0.2905,2753.5,2753.4,63.58172]
[1749702187408,0.2905,2753.5,2753.4,68.58172]
[1749702193608,0.00545108,2753.7,2753.6,0.72618]
[1749702193807,1.08e-06,2753.7,2753.6,42.81698]
[1749702194009,0.5953,2754.5,2754.4,0.72596]
[1749702194202,0.5953,2754.5,2754.4,22.12396]
[1749702194409,3.2078,2754.6,2754.5,0.72594]
[1749702194811,3.2078,2754.6,2754.4,21.398]
[1749702195008,3.93371,2754.6,2754.5,0.72594]
[1749702195315,3.2078,2754.6,2754.5,0.72594]
[1749702196313,0.00545108,2754.8,2754.7,0.72589]
[1749702196509,0.00545108,2754.8,2754.7,17.64189]
[1749702199713,0.73131108,2754.8,2754.7,22.11889]
[1749702200014,0.72591,2754.6,2754.5,40.8]
[1749702200207,0.72591,2754.6,2754.5,62.192]
[1749702200408,0.72591,2754.6,2754.5,21.392]
[1749702200611,1.2696,2754.6,2754.1,3.93383]
[1749702200810,0.72602,2754.3,2754.2,21.392]
[1749702201014,0.72598,2754.4,2754.2,62.192]
[1749702201214,1.2696,2754.3,2754.2,62.91802]
[1749702201419,1.8875,2754.3,2754.2,62.91802]
[1749702201917,2.61349,2754.3,2754.2,62.191]
[1749702202113,0.72602,2754.2,2754.1,3.2078]
[1749702202311,1.99562,2754.2,2754.1,24.5988]
[1749702204112,1.99562,2754.2,2754.1,7.6868]
[1749702204416,1.99562,2754.2,2754.1,21.391]
[1749702205305,1.99562,2754.2,2754.1,4.479]
[1749702205511,1.99562,2754.2,2754.1,21.391]
[1749702206315,1.99562,2754.2,2754.1,4.479]
[1749702206615,1.2696,2754.2,2754.1,22.11704]
[1749702206807,1.2302,2754.3,2754.2,0.72602]
[1749702207008,0.6179,2754.3,2754.2,0.72602]
[1749702207612,0.6179,2754.3,2754.1,22.11703]
[1749702207812,1.34389,2754.3,2754.2,21.376]
[1749702208110,0.72607,2754.0,2753.9,40.8]
[1749702208311,0.72606,2754.1,2753.9,62.90209]
[1749702208511,0.5938,2754.0,2753.9,62.90209]